bitfinex/quotes_BTCUSD_20220202
["timestamp","ask_amount","ask_price","bid_price","bid_amount"]
[1643794405873,0.064922,38508.0,38505.0,0.03897041]
[1643794406373,0.064922,38508.0,38507.0,0.08054935]
[1643794407176,0.064922,38508.0,38506.0,0.00135506]
[1643794408177,0.064922,38508.0,38503.0,0.03761533]
[1643794408478,0.10532897,38507.0,38505.0,0.00135507]
[1643794409329,0.17024997,38507.0,38504.0,0.09201461]
[1643794409529,0.064921,38507.0,38504.0,0.09333658]
[1643794409730,0.09154273,38506.0,38504.0,0.09333658]
[1643794410530,0.09154273,38506.0,38504.0,0.09201461]
[1643794411331,0.09154273,38506.0,38501.0,7.32e-06]
[1643794411539,0.09154273,38506.0,38494.0,0.05]
[1643794411540,0.1,38503.0,38494.0,0.05]
[1643794411731,0.16026372,38502.0,38490.0,0.32733592]
[1643794411931,0.16026372,38502.0,38489.0,0.68983592]
[1643794411932,0.09475278,38500.0,38489.0,0.68983592]
[1643794412131,0.15715979,38499.0,38489.0,0.68983592]
[1643794412332,0.27667893,38498.0,38491.0,0.2322629]
[1643794412530,0.3807308,38498.0,38491.0,0.2322629]
[1643794412730,0.10330159,38496.0,38489.0,0.68983592]
[1643794412936,0.10918632,38496.0,38488.0,0.57790883]
[1643794413175,0.10169918,38495.0,38490.0,0.09365386]
[1643794413376,0.16663842,38495.0,38489.0,0.129866]
[1643794413679,0.16663842,38495.0,38487.0,0.32733592]
[1643794413680,0.16910926,38492.0,38487.0,0.32733592]
[1643794413877,0.16910926,38492.0,38486.0,1.0]
[1643794413878,0.15476304,38491.0,38486.0,1.0]
[1643794414079,0.0522,38491.0,38486.0,1.0]
[1643794414278,0.08610334,38490.0,38486.0,1.0]
[1643794414577,0.10185778,38487.0,38486.0,1.0]
[1643794414778,0.16715811,38489.0,38486.0,1.0]
[1643794414979,0.09264342,38487.0,38486.0,1.0]
[1643794415177,0.05,38487.0,38486.0,1.0]
[1643794415379,0.16715811,38489.0,38486.0,1.0]
[1643794415977,0.21596993,38488.0,38486.0,1.0]
[1643794418023,0.16715811,38489.0,38486.0,1.0]
[1643794418626,0.21648488,38488.0,38486.0,1.0]
[1643794419627,0.16715811,38489.0,38486.0,1.0]
[1643794420229,0.16715811,38489.0,38486.0,1.00135377]
[1643794421277,0.16715811,38489.0,38486.0,1.0]
[1643794421480,0.2191292,38488.0,38486.0,1.00135377]
[1643794421678,0.16715811,38489.0,38486.0,1.00135377]
[1643794422577,0.16715811,38489.0,38486.0,1.0]
[1643794422780,0.16715811,38489.0,38486.0,1.00135377]
[1643794423381,0.21472828,38488.0,38486.0,1.00135377]
[1643794423779,0.21472828,38488.0,38486.0,1.0]
[1643794424824,0.16715811,38489.0,38486.0,1.0]
[1643794425325,0.09225205,38487.0,38486.0,1.0]
[1643794425525,0.21697402,38488.0,38486.0,1.0]
[1643794425826,0.412363,38487.0,38486.0,1.0]
[1643794426026,0.462363,38487.0,38486.0,1.0]
[1643794426426,0.74249334,38487.0,38486.0,1.0]
[1643794429780,0.84249334,38487.0,38486.0,1.0]
[1643794431281,0.74249334,38487.0,38486.0,1.0]
[1643794431482,0.114563,38487.0,38486.0,1.0]
[1643794431937,0.0522,38487.0,38486.0,1.0]
[1643794432736,0.06495811,38489.0,38486.0,1.0]
[1643794433135,0.06495811,38489.0,38488.0,0.096976]
[1643794433336,0.06495811,38489.0,38486.0,1.0]
[1643794433337,0.06435588,38489.0,38486.0,1.0]
[1643794433639,0.06435588,38489.0,38486.0,1.00135236]
[1643794434536,0.06435588,38489.0,38486.0,1.0]
[1643794434738,0.06435588,38489.0,38486.0,1.00135236]
[1643794435676,0.06435588,38489.0,38486.0,1.08305253]
[1643794435976,0.06435588,38489.0,38486.0,1.08440489]
[1643794436281,0.1047657,38487.0,38486.0,1.08440489]
[1643794436475,0.06435588,38489.0,38486.0,1.08440489]
[1643794436678,0.10209754,38487.0,38486.0,1.08440489]
[1643794436875,0.10209754,38487.0,38486.0,1.08305253]
[1643794436876,0.07615677,38487.0,38486.0,1.08305253]
[1643794437680,0.259821,38503.0,38486.0,1.43321153]
[1643794437880,0.09320351,38490.0,38487.0,0.63899119]
[1643794438078,0.064937,38492.0,38487.0,0.63899119]
[1643794438377,0.064937,38492.0,38487.0,0.64034353]
[1643794438378,0.09254741,38491.0,38487.0,0.64034353]
[1643794438578,0.10259607,38490.0,38488.0,0.27167711]
[1643794438781,0.09486978,38490.0,38489.0,0.56730711]
[1643794440625,0.09868228,38491.0,38489.0,0.21714811]
[1643794440824,0.15643801,38492.0,38490.0,0.064934]
[1643794441024,0.064937,38492.0,38491.0,0.20718606]
[1643794441223,0.1678447,38492.0,38491.0,0.20718606]
[1643794441427,0.064937,38492.0,38491.0,0.20718606]
[1643794441824,0.15670211,38492.0,38491.0,0.20718606]
[1643794442025,0.064937,38492.0,38491.0,0.20718606]
[1643794442224,0.17013447,38492.0,38491.0,0.20718606]
[1643794442424,0.064937,38492.0,38491.0,0.20718606]
[1643794443080,0.16187395,38492.0,38491.0,0.18714956]
[1643794443274,0.064937,38492.0,38491.0,0.18714956]
[1643794444673,0.064937,38492.0,38490.0,0.11848629]
[1643794445074,0.064937,38492.0,38491.0,0.350159]
[1643794445475,0.114933,38495.0,38491.0,0.53585576]
[1643794445674,0.114933,38495.0,38491.0,0.18569676]
[1643794446828,0.114933,38495.0,38491.0,0.18704902]
[1643794447628,0.114933,38495.0,38490.0,0.10418302]
[1643794447829,0.114933,38495.0,38491.0,0.00135226]
[1643794448629,0.07553716,38493.0,38491.0,0.00135226]
[1643794448830,0.07553716,38493.0,38490.0,0.10418302]
[1643794449032,0.064941,38492.0,38490.0,0.0522]
[1643794449234,0.064941,38492.0,38489.0,0.00068623]
[1643794450230,0.064941,38492.0,38486.0,1.22923184]
[1643794450429,0.064941,38492.0,38489.0,0.00120985]
[1643794451299,0.06494967,38491.0,38486.0,1.0]
[1643794451498,0.24485267,38491.0,38489.0,0.00120985]
[1643794452498,0.24485267,38491.0,38486.0,1.0]
[1643794452701,0.24485267,38491.0,38488.0,0.00068455]
[1643794453198,0.46041858,38491.0,38488.0,0.00068455]
[1643794453397,0.09531802,38490.0,38488.0,0.00068455]
[1643794453597,0.24485267,38491.0,38488.0,0.00068455]
[1643794453799,0.09393396,38487.0,38486.0,1.0]
[1643794453999,0.07532866,38487.0,38486.0,1.0]
[1643794454199,0.064951,38488.0,38486.0,1.0]
[1643794454200,0.114951,38488.0,38486.0,1.350159]
[1643794454442,0.0649502,38489.0,38487.0,0.350159]
[1643794455040,0.225178,38495.0,38494.0,0.10407528]
[1643794455340,0.15035927,38495.0,38494.0,0.10407528]
[1643794455538,0.05,38495.0,38493.0,0.43818118]
[1643794455738,0.14200407,38495.0,38493.0,0.43818118]
[1643794456141,0.05,38495.0,38493.0,0.064933]
[1643794456542,0.05,38494.0,38493.0,0.064933]
[1643794456741,0.05,38495.0,38491.0,0.064936]
[1643794456945,0.2003691,38494.0,38491.0,0.064936]
[1643794457142,0.09808778,38494.0,38491.0,0.064936]
[1643794457442,0.09681892,38492.0,38491.0,0.064936]
[1643794457642,0.04577283,38492.0,38491.0,0.064936]
[1643794457841,0.04577283,38492.0,38489.0,0.00134932]
[1643794458086,0.11493596,38493.0,38490.0,0.350159]
[1643794458678,0.0956205,38492.0,38490.0,0.350159]
[1643794459679,0.0956205,38492.0,38489.0,0.064939]
[1643794459880,0.06494086,38490.0,38489.0,0.06628829]
[1643794460080,0.06494086,38490.0,38489.0,0.41644729]
[1643794460282,0.06494086,38490.0,38489.0,0.35150829]
[1643794460779,0.16804782,38490.0,38489.0,0.35150829]
[1643794460978,0.06494086,38490.0,38489.0,0.350159]
[1643794461179,0.15638471,38490.0,38488.0,0.35150832]
[1643794461379,0.06494086,38490.0,38488.0,0.35150832]
[1643794461578,0.20901983,38490.0,38488.0,0.35150832]
[1643794461830,0.11494086,38490.0,38488.0,0.35150832]
[1643794462031,0.20944673,38490.0,38488.0,0.35150832]
[1643794462228,0.11494086,38490.0,38488.0,0.350159]
[1643794462429,0.2095892,38490.0,38488.0,0.350159]
[1643794462629,0.09082753,38488.0,38487.0,0.00068457]
[1643794462830,0.11494086,38490.0,38487.0,0.00068457]
[1643794463032,0.05,38488.0,38487.0,0.00068457]
[1643794463233,0.29483694,38490.0,38487.0,0.35084357]
[1643794463431,0.29483694,38490.0,38487.0,0.350159]
[1643794463630,0.29483694,38490.0,38486.0,1.0]
[1643794463631,0.06495,38488.0,38486.0,1.00060758]
[1643794463831,0.06495,38488.0,38487.0,0.350159]
[1643794464833,0.16728088,38488.0,38487.0,0.350159]
[1643794465232,0.21728088,38488.0,38487.0,0.350159]
[1643794465432,0.21728088,38488.0,38486.0,1.00060758]
[1643794465678,0.21728088,38488.0,38486.0,1.0]
[1643794467478,0.28222844,38488.0,38486.0,1.0]
[1643794468179,0.17989756,38488.0,38486.0,1.0]
[1643794468380,0.17989756,38488.0,38487.0,0.350159]
[1643794471832,0.17989756,38488.0,38486.0,0.993]
[1643794472034,0.17989756,38488.0,38486.0,0.99412264]
[1643794472236,0.17989756,38488.0,38487.0,0.350159]
[1643794472436,0.17989756,38488.0,38486.0,0.99412264]
[1643794473091,0.09367795,38487.0,38486.0,0.993]
[1643794473284,0.17989756,38488.0,38486.0,0.993]
[1643794473484,0.0997886,38487.0,38486.0,0.993]
[1643794473685,0.17989756,38488.0,38486.0,0.993]
[1643794473885,0.09236672,38487.0,38486.0,0.993]
[1643794474086,0.12989756,38488.0,38486.0,1.343159]
[1643794474386,0.129888,38494.0,38487.0,0.350159]
[1643794474387,0.12988185,38494.0,38487.0,0.350159]
[1643794474585,0.10579893,38492.0,38487.0,0.350159]
[1643794475186,0.10579893,38492.0,38488.0,0.064937]
[1643794475386,0.10579893,38492.0,38489.0,0.350159]
[1643794475586,0.07081765,38496.0,38489.0,0.350159]
[1643794475785,0.1004133,38492.0,38489.0,0.72749492]
[1643794475987,0.10102452,38495.0,38494.0,0.08740212]
[1643794476187,0.10102452,38495.0,38494.0,0.43756112]
[1643794477440,0.10102452,38495.0,38494.0,0.48976112]
[1643794477643,0.06177179,38495.0,38494.0,0.48976112]
[1643794478043,0.064926,38496.0,38494.0,0.48976112]
[1643794478044,0.12985194,38496.0,38494.0,0.48976112]
[1643794478440,0.22744127,38496.0,38494.0,0.48976112]
[1643794478641,0.12985194,38496.0,38494.0,0.48976112]
[1643794479844,0.25970231,38496.0,38494.0,0.48976112]
[1643794480041,0.25970231,38496.0,38494.0,0.402359]
[1643794480443,0.35514892,38496.0,38494.0,0.0522]
[1643794480681,0.40514892,38496.0,38494.0,0.0522]
[1643794481483,0.10106127,38495.0,38494.0,0.0522]
[1643794481782,0.09283171,38495.0,38494.0,0.0522]
[1643794481980,0.09283171,38495.0,38494.0,0.402359]
[1643794483783,0.09283171,38495.0,38494.0,0.40155002]
[1643794484529,0.11492594,38496.0,38494.0,0.40155002]
[1643794484729,0.11492421,38497.0,38494.0,0.40155002]
[1643794485227,0.11492421,38497.0,38496.0,0.2617425]
[1643794485430,0.11492421,38497.0,38496.0,0.6119015]
[1643794486031,0.05,38497.0,38496.0,0.6119015]
[1643794487429,0.11492421,38497.0,38496.0,0.6119015]
[1643794490782,0.11492421,38497.0,38496.0,0.2617425]
[1643794491181,0.11492421,38497.0,38496.0,0.6119015]
[1643794492442,0.11492421,38497.0,38496.0,0.2617425]
[1643794492843,0.11492421,38497.0,38495.0,0.064929]
[1643794493043,0.05,38496.0,38495.0,0.064929]
[1643794494547,0.14788004,38496.0,38495.0,0.064929]
[1643794494746,0.14788004,38496.0,38493.0,0.25002289]
[1643794494947,0.34268964,38496.0,38493.0,0.25002289]
[1643794495148,0.40762514,38496.0,38493.0,0.25002289]
[1643794495348,0.05,38495.0,38493.0,0.25002289]
[1643794496190,0.09391799,38494.0,38493.0,0.25002289]
[1643794496386,0.05,38495.0,38493.0,0.60018189]
[1643794496587,0.05,38495.0,38494.0,0.350159]
[1643794496787,0.05,38495.0,38493.0,0.25002289]
[1643794497990,0.06493613,38493.0,38491.0,0.49201792]
[1643794498189,0.06493613,38493.0,38492.0,0.350159]
[1643794499089,0.06493613,38493.0,38491.0,0.39201792]
[1643794499090,0.11493613,38493.0,38491.0,0.35071288]
[1643794499331,0.11493613,38493.0,38492.0,0.350159]
[1643794500633,0.06493613,38493.0,38492.0,0.55185633]
[1643794500834,0.07597426,38493.0,38492.0,0.55185633]
[1643794501233,0.02597426,38493.0,38492.0,0.55185633]
[1643794501532,0.1948016,38496.0,38492.0,0.55185633]
[1643794501533,0.12985339,38496.0,38492.0,0.55185633]
[1643794501733,0.12985339,38496.0,38493.0,0.0810346]
[1643794501932,0.12985339,38496.0,38494.0,0.61060702]
[1643794502135,0.12985339,38496.0,38495.0,0.19519435]
[1643794502334,0.12985339,38496.0,38495.0,0.350159]
[1643794502735,0.17985339,38496.0,38495.0,0.350159]
[1643794502935,0.17985339,38496.0,38495.0,0.53527063]
[1643794503184,0.17985339,38496.0,38495.0,0.350159]
[1643794503689,0.17985339,38496.0,38495.0,0.54047533]
[1643794504183,0.17985339,38496.0,38495.0,0.350159]
[1643794505884,0.12985339,38496.0,38495.0,0.350159]
[1643794506936,0.17485339,38496.0,38495.0,0.350159]
[1643794507738,0.08678723,38495.0,38492.0,0.1984646]
[1643794507938,0.21666123,38495.0,38493.0,0.350159]
[1643794508739,0.21666123,38495.0,38490.0,0.32708092]
[1643794508944,0.06494578,38494.0,38488.0,0.44628092]
[1643794509139,0.06494578,38494.0,38489.0,0.00111761]
[1643794509340,0.12988467,38493.0,38489.0,0.00111761]
[1643794509740,0.17988467,38493.0,38487.0,0.57392346]
[1643794509943,0.17988467,38493.0,38488.0,0.350159]
[1643794510986,0.17988467,38493.0,38489.0,0.064943]
[1643794511285,0.064943,38492.0,38489.0,0.064943]
[1643794511685,0.064943,38492.0,38487.0,0.32764115]
[1643794511886,0.06494999,38491.0,38487.0,0.00056023]
[1643794512286,0.24322151,38490.0,38487.0,0.00056023]
[1643794512486,0.1299114,38490.0,38486.0,1.993]
[1643794512686,0.41658144,38490.0,38487.0,0.00056024]
[1643794513084,0.10370156,38489.0,38487.0,0.00056024]
[1643794513285,0.57634857,38488.0,38487.0,0.00056024]
[1643794513485,0.62634857,38488.0,38487.0,0.00056024]
[1643794513685,0.62634857,38488.0,38486.0,1.993]
[1643794513884,0.47271129,38487.0,38486.0,1.99411771]
[1643794514933,0.77271129,38487.0,38486.0,1.993]
[1643794515135,0.57491129,38487.0,38486.0,1.993]
[1643794515333,0.58727429,38487.0,38486.0,1.993]
[1643794515735,0.53727429,38487.0,38486.0,1.993]
[1643794515935,1.18727429,38487.0,38486.0,1.98651]
[1643794516333,1.18727429,38487.0,38486.0,1.59666184]
[1643794516739,1.28117987,38487.0,38486.0,1.59666184]
[1643794516935,1.38117987,38487.0,38486.0,1.20681473]
[1643794517138,1.38727429,38487.0,38486.0,1.20681473]
[1643794517336,1.51310486,38487.0,38486.0,0.81697321]
[1643794517536,1.33727429,38487.0,38486.0,0.81697321]
[1643794518385,1.83727429,38487.0,38486.0,0.81697321]
[1643794519786,1.18727429,38487.0,38486.0,0.81697321]
[1643794520289,0.82276298,38487.0,38486.0,0.81697321]
[1643794521186,0.064563,38487.0,38486.0,0.81697321]
[1643794521385,0.62992103,38488.0,38486.0,0.81697321]
[1643794522236,0.12992103,38488.0,38486.0,0.81697321]
[1643794522436,0.68151676,38487.0,38486.0,0.81697321]
[1643794522835,0.512363,38487.0,38486.0,0.81697321]
[1643794524235,0.062363,38487.0,38486.0,0.81697321]
[1643794524641,0.012363,38487.0,38486.0,0.81697321]
[1643794524838,0.17992103,38488.0,38486.0,0.81697321]
[1643794526095,0.012363,38487.0,38486.0,0.81697321]
[1643794527397,0.09454488,38487.0,38486.0,0.81697321]
[1643794527594,0.17992103,38488.0,38486.0,0.81697321]
[1643794527797,0.09745454,38487.0,38486.0,0.81697321]
[1643794528001,0.05,38487.0,38486.0,0.81697321]
[1643794528296,0.40050841,38488.0,38486.0,0.81697321]
[1643794528496,0.17992103,38488.0,38486.0,0.81697321]
[1643794529758,0.512363,38487.0,38486.0,0.81697321]
[1643794530357,0.012363,38487.0,38486.0,0.81697321]
[1643794530957,0.17992103,38488.0,38486.0,0.81697321]
[1643794534789,0.12992103,38488.0,38486.0,0.81697321]
[1643794536090,0.17992103,38488.0,38486.0,0.81697321]
[1643794536391,0.17992103,38488.0,38486.0,0.81197321]
[1643794537135,0.12992103,38488.0,38486.0,0.81197321]
[1643794538435,0.17992103,38488.0,38486.0,0.81197321]
[1643794538636,0.05,38487.0,38486.0,0.81197321]
[1643794538836,0.17992103,38488.0,38486.0,0.81197321]
[1643794539237,0.05,38487.0,38486.0,0.81197321]
[1643794539837,0.17992103,38488.0,38486.0,0.81197321]
[1643794540689,0.02980094,38488.0,38486.0,0.81197321]
[1643794541290,0.09476297,38488.0,38486.0,0.81197321]
[1643794541490,0.412363,38487.0,38486.0,0.81197321]
[1643794542293,0.462363,38487.0,38486.0,0.81197321]
[1643794542893,0.67897135,38487.0,38486.0,0.81197321]
[1643794543096,0.462363,38487.0,38486.0,0.81197321]
[1643794546033,0.45,38487.0,38486.0,0.81197321]
[1643794546631,0.05,38487.0,38486.0,0.81197321]
[1643794547035,0.14476297,38488.0,38486.0,0.81197321]
[1643794549484,0.0980306,38487.0,38486.0,0.81197321]
[1643794549683,0.14476297,38488.0,38486.0,0.81197321]
[1643794549884,0.10519987,38487.0,38486.0,0.81197321]
[1643794550085,0.05,38487.0,38486.0,0.81197321]
[1643794550286,0.14476297,38488.0,38486.0,1.38116202]
[1643794550287,0.07980094,38488.0,38486.0,1.38116202]
[1643794550488,0.17702859,38493.0,38487.0,0.19924308]
[1643794550489,0.00122081,38493.0,38487.0,0.19924308]
[1643794550685,0.00122081,38493.0,38488.0,0.05000732]
[1643794551088,0.08182392,38495.0,38489.0,0.08972972]
[1643794551487,0.08182392,38495.0,38492.0,0.23617366]
[1643794551686,0.00588447,38495.0,38492.0,0.30112041]
[1643794553635,0.00710676,38495.0,38492.0,0.30112041]
[1643794554234,0.00710676,38495.0,38494.0,0.21515341]
[1643794554437,0.00710676,38495.0,38494.0,0.41795758]
[1643794554636,0.5,38499.0,38494.0,0.42069361]
[1643794554835,0.00128471,38496.0,38495.0,0.05000732]
[1643794555034,0.00128471,38496.0,38495.0,0.65857238]
[1643794555235,0.00128471,38496.0,38495.0,0.60856506]
[1643794556002,0.00128469,38497.0,38495.0,0.20856506]
[1643794556201,0.00128469,38497.0,38495.0,0.27349563]
[1643794556399,0.00128469,38497.0,38496.0,0.19461283]
[1643794557099,0.07726007,38502.0,38497.0,0.06493296]
[1643794557299,0.00128468,38498.0,38497.0,0.06493296]
[1643794558198,0.07726007,38502.0,38498.0,0.1298612]
[1643794558400,0.00120818,38499.0,38498.0,0.1298612]
[1643794559434,0.07726007,38502.0,38498.0,0.1298612]
[1643794559635,0.00120817,38500.0,38498.0,0.1298612]
[1643794560639,0.07726007,38502.0,38498.0,0.1298612]
[1643794560938,0.00120816,38501.0,38498.0,0.1298612]
[1643794561437,0.00120816,38501.0,38499.0,0.19443396]
[1643794561638,0.00120816,38501.0,38499.0,0.25936439]
[1643794561836,0.5,38506.0,38499.0,0.06493043]
[1643794562036,0.00122535,38502.0,38499.0,0.06493043]
[1643794563091,0.09413068,38505.0,38499.0,0.06493043]
[1643794563387,0.00122535,38502.0,38499.0,0.06493043]
[1643794564184,0.09413068,38505.0,38499.0,0.06493043]
[1643794564386,0.00122535,38502.0,38499.0,0.06493043]
[1643794564988,0.00122535,38502.0,38499.0,0.26049475]
[1643794565387,0.5,38506.0,38499.0,0.26049475]
[1643794565587,0.00122148,38502.0,38499.0,0.26049475]
[1643794565787,0.00122148,38502.0,38499.0,0.06493043]
[1643794566392,0.00122148,38502.0,38500.0,0.064924]
[1643794566589,0.5,38506.0,38501.0,0.10378135]
[1643794566840,0.5,38506.0,38502.0,0.20414092]
[1643794566841,0.00122147,38503.0,38502.0,0.20414092]
[1643794567240,0.00122147,38503.0,38501.0,0.16870712]
[1643794567440,0.00122147,38503.0,38502.0,0.350159]
[1643794567840,0.0058832,38507.0,38502.0,0.350159]
[1643794568040,0.0058832,38507.0,38505.0,0.23859575]
[1643794568241,0.0058832,38507.0,38505.0,0.30351713]
[1643794568842,0.0058832,38507.0,38506.0,0.22339852]
[1643794571994,0.0058832,38507.0,38506.0,0.19090687]
[1643794572300,0.00122226,38508.0,38506.0,0.19090687]
[1643794572596,0.5,38511.0,38507.0,0.91727494]
[1643794572794,0.00122206,38509.0,38507.0,0.61711594]
[1643794572996,0.00122206,38509.0,38508.0,0.59505043]
[1643794573794,0.002,38514.0,38508.0,0.59505043]
[1643794573995,0.00122203,38510.0,38508.0,0.29489875]
[1643794574193,0.00122203,38510.0,38509.0,0.350159]
[1643794574639,0.00122203,38510.0,38509.0,0.55379484]
[1643794575040,0.002,38514.0,38509.0,0.55379484]
[1643794575239,0.002,38514.0,38510.0,0.06491056]
[1643794575240,0.00122202,38511.0,38510.0,0.06491056]
[1643794575438,0.00122202,38511.0,38510.0,0.27041908]
[1643794575639,0.00122202,38511.0,38510.0,0.06480556]
[1643794576239,0.002,38514.0,38510.0,0.06480556]
[1643794578894,0.00322347,38514.0,38510.0,0.06480556]
[1643794579794,0.002,38514.0,38510.0,0.06480556]
[1643794580095,0.00328587,38514.0,38510.0,0.06480556]
[1643794581094,0.002,38514.0,38510.0,0.06480556]
[1643794581294,0.00328587,38514.0,38510.0,0.06480556]
[1643794582140,0.002,38514.0,38510.0,0.06480556]
[1643794582338,0.00328587,38514.0,38510.0,0.06480556]
[1643794583441,0.002,38514.0,38510.0,0.06480556]
[1643794583639,0.002,38514.0,38503.0,0.4137]
[1643794583640,0.002,38514.0,38503.0,0.55398485]
[1643794583641,0.00320942,38514.0,38503.0,0.55398485]
[1643794584539,0.066927,38514.0,38503.0,0.55398485]
[1643794584940,0.00120946,38511.0,38503.0,0.55398485]
[1643794585141,0.00120946,38511.0,38506.0,0.1298457]
[1643794585790,0.066927,38514.0,38506.0,0.1298457]
[1643794585990,0.00120947,38510.0,38506.0,0.1298457]
[1643794586990,0.129858,38513.0,38506.0,0.1298457]
[1643794587293,0.00122668,38510.0,38506.0,0.1298457]
[1643794588290,0.012363,38509.0,38506.0,0.1298457]
[1643794588490,0.00122668,38510.0,38506.0,0.1298457]
[1643794589345,0.07081327,38512.0,38506.0,0.1298457]
[1643794589346,0.00588227,38512.0,38506.0,0.1298457]
[1643794589546,0.00122281,38510.0,38506.0,0.1298457]
[1643794590551,0.00588227,38512.0,38506.0,0.1298457]
[1643794593289,0.00122423,38511.0,38506.0,0.1298457]
[1643794594187,0.00588227,38512.0,38506.0,0.1298457]
[1643794594488,0.00128744,38510.0,38506.0,0.1298457]
[1643794595490,0.13574527,38512.0,38506.0,0.1298457]
[1643794595688,0.00128745,38510.0,38506.0,0.1298457]
[1643794596088,0.00128745,38510.0,38506.0,0.12977982]
[1643794596491,0.00128745,38510.0,38503.0,0.74822727]
[1643794596689,0.064932,38511.0,38503.0,0.49135403]
[1643794596939,0.00128745,38510.0,38503.0,0.49135403]
[1643794597139,0.00128745,38510.0,38503.0,0.12985403]
[1643794597843,0.23723699,38509.0,38503.0,0.12985403]
[1643794598041,0.00121091,38508.0,38503.0,0.12985403]
[1643794598442,0.00109426,38508.0,38503.0,0.12985403]
[1643794598943,0.23723699,38509.0,38503.0,0.12985403]
[1643794600445,0.00066888,38508.0,38503.0,0.12985403]
[1643794601294,0.00066888,38508.0,38503.0,0.12485403]
[1643794601497,0.03513025,38507.0,38503.0,0.12485403]
[1643794601696,0.35959144,38506.0,38503.0,0.12485403]
[1643794602494,0.07693116,38505.0,38503.0,0.12485403]
[1643794602697,0.064563,38504.0,38503.0,0.12485403]
[1643794602894,0.26809553,38504.0,38503.0,0.12485403]
[1643794603895,0.28045853,38504.0,38503.0,0.12485403]
[1643794604096,0.064563,38504.0,38503.0,0.12485403]
[1643794606445,0.0522,38504.0,38503.0,0.12485403]
[1643794606645,0.00133717,38505.0,38503.0,0.12485403]
[1643794607445,0.10135222,38509.0,38503.0,0.12485403]
[1643794607647,0.00133717,38506.0,38503.0,0.12485403]
[1643794608604,0.012363,38505.0,38503.0,0.12485403]
[1643794608806,0.00133717,38506.0,38503.0,0.12485403]
[1643794609806,0.18163744,38512.0,38503.0,0.31968402]
[1643794610009,0.00133717,38506.0,38504.0,0.06492585]
[1643794610608,0.00133717,38506.0,38504.0,0.25597964]
[1643794610809,0.00133717,38506.0,38505.0,0.19294814]
[1643794611011,0.05133065,38514.0,38505.0,0.19294814]
[1643794611209,0.05133065,38514.0,38511.0,0.29738417]
[1643794611210,0.00534788,38513.0,38511.0,0.29738417]
[1643794611509,0.712363,38512.0,38511.0,0.29738417]
[1643794614944,0.712363,38512.0,38511.0,0.49722077]
[1643794614945,0.012363,38512.0,38511.0,0.49722077]
[1643794615146,0.00119829,38513.0,38511.0,2.55272827]
[1643794615346,0.00119829,38513.0,38512.0,0.20744042]
[1643794615843,0.002,38514.0,38512.0,0.20744042]
[1643794616043,0.00319828,38514.0,38512.0,0.27235167]
[1643794617046,0.002,38514.0,38512.0,0.27235167]
[1643794617745,0.002,38514.0,38513.0,0.1931177]
[1643794618146,0.002,38514.0,38512.0,0.25775014]
[1643794618345,0.002,38514.0,38512.0,0.06491125]
[1643794619246,0.002,38514.0,38512.0,0.25608764]
[1643794619447,0.002,38514.0,38512.0,0.06491125]
[1643794620049,0.002,38514.0,38512.0,0.25624583]
[1643794620247,0.002,38514.0,38513.0,0.32665981]
[1643794620848,0.002,38514.0,38513.0,0.1298148]
[1643794621848,0.002,38514.0,38513.0,0.37640648]
[1643794622448,0.002,38514.0,38513.0,0.1298148]
[1643794623700,0.002,38514.0,38513.0,0.32146946]
[1643794624299,0.00189989,38514.0,38513.0,0.32146946]
[1643794624499,0.00189989,38514.0,38513.0,0.1298148]
[1643794625700,0.00189989,38514.0,38511.0,0.56213451]
[1643794625900,0.00189989,38514.0,38511.0,0.5602213]
[1643794626402,0.00189989,38514.0,38512.0,0.19231255]
[1643794628043,0.00189989,38514.0,38511.0,0.6080813]
[1643794628244,0.00189989,38514.0,38511.0,0.49722077]
[1643794628444,0.00189989,38514.0,38512.0,0.19310838]
[1643794628645,0.00189989,38514.0,38512.0,0.19673602]
[1643794628846,0.00189989,38514.0,38513.0,0.350159]
[1643794629050,0.00189989,38514.0,38513.0,0.22185754]
[1643794630349,0.00189989,38514.0,38513.0,0.28676455]
[1643794630999,0.00189989,38514.0,38513.0,0.06490701]
[1643794631401,0.00189989,38514.0,38513.0,0.26552861]
[1643794632200,0.00189989,38514.0,38513.0,0.61568761]
[1643794633603,0.00189989,38514.0,38513.0,0.66788761]
[1643794633801,0.001,38516.0,38514.0,0.5]
[1643794634001,0.001,38516.0,38515.0,1.06301839]
[1643794634201,0.001,38516.0,38515.0,0.71521839]
[1643794634847,0.001,38516.0,38515.0,0.76521839]
[1643794635848,0.001,38516.0,38515.0,0.71521839]
[1643794636049,0.004647,38516.0,38515.0,0.71521839]
[1643794637051,0.004647,38516.0,38515.0,0.467259]
[1643794638697,0.004647,38516.0,38515.0,0.415059]
[1643794639897,0.004647,38516.0,38515.0,0.0649]
[1643794640098,0.004647,38516.0,38515.0,0.350159]
[1643794640498,0.004647,38516.0,38514.0,0.12979841]
[1643794640696,0.004647,38516.0,38513.0,0.25959982]
[1643794641098,0.004647,38516.0,38513.0,0.06489882]
[1643794641299,0.004647,38516.0,38512.0,0.06490966]
[1643794642252,0.004647,38516.0,38511.0,1.37410198]
[1643794642650,0.004647,38516.0,38512.0,0.19151635]
[1643794643051,0.004647,38516.0,38512.0,0.25642335]
[1643794643450,0.004647,38516.0,38512.0,0.064907]
[1643794643651,0.004647,38516.0,38511.0,1.43900805]
[1643794643950,0.004647,38516.0,38511.0,1.37410005]
[1643794644349,0.09901264,38516.0,38511.0,1.37410005]
[1643794644550,0.004647,38516.0,38511.0,1.37410005]
[1643794645822,0.004647,38516.0,38511.0,1.43900905]
[1643794646022,0.004647,38516.0,38512.0,0.19210019]
[1643794646622,0.004647,38516.0,38513.0,0.350159]
[1643794646823,0.004647,38516.0,38514.0,0.3381217]
[1643794647023,0.004647,38516.0,38515.0,0.56226649]
[1643794648424,0.004647,38516.0,38515.0,0.21210749]
[1643794648627,0.004647,38516.0,38514.0,0.19470236]
[1643794648829,0.004647,38516.0,38512.0,0.20429742]
[1643794649028,0.004647,38516.0,38511.0,1.30919398]
[1643794650153,0.004647,38516.0,38512.0,0.54185714]
[1643794650751,0.004647,38516.0,38512.0,0.19169814]
[1643794651754,0.004647,38516.0,38513.0,0.350159]
[1643794652354,0.004647,38516.0,38514.0,0.20429073]
[1643794652756,0.004647,38516.0,38515.0,0.350159]
[1643794652954,0.004647,38516.0,38513.0,0.350159]
[1643794653209,0.004647,38516.0,38514.0,0.10905095]
[1643794653409,0.004647,38516.0,38512.0,0.064903]
[1643794653612,0.004647,38516.0,38511.0,1.37409798]